Cogmind - Beta 17 @@@ ROGUE MODE // 2026.07.06 @ 03:10:01 Player: Robbedoes2000 Result: Destroyed by UP-K1F(j) with Overtuned Pulse Rifle Performance ------------- Evolutions (0) 0 Regions Visited (3) 600 Robots Destroyed (11) 55 Value Destroyed (286) 286 Prototype IDs (19) 380 Alien Tech Used (0) 0 Bonus (800) 800 TOTAL SCORE: 2121 Bonus ------- Registered with UFD 300 Met Optimus in HQ 500 Cogmind --------- Core Integrity 0/250 Matter 290/300 Energy 140/140 System Corruption 9% Temperature Critical (519) Movement Core (300) Ox5 Location -8/Scraptown Parts ------- > --- POWER (1) -------- Light Deuterium Engine > --- PROPULSION (2) --- Carbon-fiber Leg > --- UTILITY (2) ------ Small Storage Unit Surveybot 17 Chip > --- WEAPON (2) ------- Overtuned Pulse Rifle Overtuned Pulse Rifle > --- INVENTORY (8) ---- Light Nuclear Core Light Nuclear Core Carbon-fiber Leg Overtuned Titanium Leg Subdweller Machine Gun Barrage Gun Datajack Peak State ------------ > --- POWER ------------ Ion Engine > --- PROPULSION ------- Carbon-fiber Leg Overtuned Titanium Leg > --- UTILITY ---------- Scrap Suit > --- WEAPON ----------- Overtuned Pulse Rifle Overtuned Pulse Rifle > --- INVENTORY -------- Light Nuclear Core Light Nuclear Core Carbon-fiber Leg Overtuned Titanium Leg Surveybot 17 Chip [Rating: 22] Favorites ----------- Power Ion Engine Engine Ion Engine Propulsion Aluminum Leg Treads Overtuned Treads Leg Aluminum Leg Wheel Subdweller Monowheel Hover Unit Gravmag System Flight Unit Nuclear Pulse Thruster Utility Small Storage Unit Device Improved Terrain Scanner Storage Small Storage Unit Processor Advanced Melee Analysis Suite Weapon Subdweller Machine Gun Energy Gun Particle Gun Ballistic Gun Subdweller Machine Gun Launcher Grenade Launcher Special Weapon Mining Laser Special Melee Weapon Datajack Build | -11 -10 -10 -8 ------- Run | Yrd Mat Sub Scr Slots Evolved . | . . . . Power . | . . . . Propulsion . | . . . . Utility . | . . . . Weapon . | . . . . Parts Attached 47 | 6 4 13 24 Power 4 | 1 . 2 1 Engine 4 | 1 . 2 1 Core . | . . . . Reactor . | . . . . Propulsion 9 | 2 . 1 6 Treads 1 | . . . 1 Leg 5 | 2 . . 3 Wheel 1 | . . 1 . Hover 1 | . . . 1 Flight 1 | . . . 1 Utility 16 | 1 1 4 10 Device 8 | . 1 3 4 Storage 3 | 1 . 1 1 Processor 5 | . . . 5 Hackware . | . . . . Protection . | . . . . Artifact . | . . . . Weapon 18 | 2 3 6 7 Energy Gun 7 | 1 1 2 3 Energy Cannon . | . . . . Ballistic Gun 6 | 1 . 4 1 Ballistic Cannon . | . . . . Launcher 2 | . 1 . 1 Special Weapon 2 | . 1 . 1 Impact Weapon . | . . . . Slashing Weapon . | . . . . Piercing Weapon . | . . . . Special Melee Weapon 1 | . . . 1 Unidentified Prototypes . | . . . . Corrupted Parts 2 | . . . 2 System Corruption 9 | . . . 9 Parts Lost 5 | . . 4 1 Power 1 | . . 1 . Propulsion 1 | . . . 1 Utility . | . . . . Weapon 3 | . . 3 . Highest Loss Streak 4 | . . 4 1 To Critical Strikes . | . . . . Average Backups 7 | 4 8 7 7 Power 1 | 1 2 1 2 Propulsion 2 | 1 1 1 2 Utility 2 | . 1 2 1 Weapon 1 | 1 2 1 1 Tool/Special . | . . . . Unused Backups 13 | . 5 . 8 Power 4 | . 1 . 3 Propulsion 7 | . 3 . 4 Utility 1 | . . . 1 Weapon 1 | . 1 . . Tool/Special . | . . . . Average Slot Usage (%) 97 | . 89 98 97 Engine 13 | . 14 13 14 Leg 27 | . 28 28 27 Device 8 | . 4 13 6 Storage 13 | . 14 13 14 Processor 4 | . . . 6 Energy Gun 2 | . 4 3 1 Ballistic Gun 15 | . 4 16 14 Launcher 1 | . 9 5 . Special Melee Weapon 6 | . . . 10 Peak Build Rating 22 | 7 8 13 22 Average Rating 12 | 5 7 11 13 On Entrance 7 | . 7 8 13 Avg Prop Armor Cover (%) 9 | . . 8 9 Naked Turns . | . . . . Heaviest Build 21 | 12 15 19 21 Greatest Support 34 | 20 20 20 34 Greatest Overweight (x) 5 | 1 . 1 5 Average Overweight (x) . | . . . . Largest Inventory Capacity 35 | 8 8 35 8 Average Capacity 7 | 7 8 7 7 Most Carried 8 | 8 8 8 8 Average Carried 7 | 4 7 7 7 Final Capacity 8 | 8 8 8 8 Final Carried 8 | 8 8 8 7 Scrap Suit Usage (%) 1 | . . . 1 Class Distribution -------------------- 99% | Mutant Dominant Class ---------------- Mutant | -10/Materials Mutant | -10/Subcaves Mutant | -8/Scraptown Resources | -11 -10 -10 -8 ----------- Run | Yrd Mat Sub Scr Matter Collected 896 | 263 60 214 359 Remotely . | . . . . Salvage Created 320 | 55 30 138 97 Parts 37 | 8 7 16 6 Haulers Intercepted . | . . . . Recyclers Shooed . | . . . . Parts Field Recycled . | . . . . Retrieved Matter . | . . . . Parts Self-Destructed 15 | . . 15 . Prevented . | . . . . Parts Restored . | . . . . Kills | -11 -10 -10 -8 ------- Run | Yrd Mat Sub Scr Combat Hostiles Destroyed 7 | . . 5 2 Guns 6 | . . 4 2 Cannons 1 | . . 1 . Classes Destroyed 7 | 1 2 2 2 Builder 1 | . 1 . . Tunneler 2 | 2 . . . Operator 1 | . 1 . . Swarmer 1 | . . 1 . Subdweller 4 | . . 4 . Federalist 1 | . . . 1 Scrapper 1 | . . . 1 Best Kill Streak 2 | 1 2 2 1 Combat Bots Only 2 | . . 2 1 Max Kills in Single Turn 2 | 1 2 1 1 Gunslinging . | . . . . Exploded . | . . . . Melee . | . . . . Uniques/NPCs Destroyed . | . . . . Combat | -11 -10 -10 -8 -------- Run | Yrd Mat Sub Scr Hostile Shots Fired 92 | . . 39 53 Missed 26 | . . 16 10 Hits 66 | . . 23 43 Projectile 66 | . . 23 43 Critical Strikes 5 | . . . 5 Damage Taken 1132 | . 33 468 631 Core 268 | . . 36 232 Absorbed by Shields . | . . . . Core Remaining (%) 100 | 100 . . . Volleys Fired 45 | 4 1 29 11 Largest 2 | 2 1 2 2 Hottest 160 | 60 30 100 160 Shots Fired 65 | 7 1 43 14 Gun 63 | 7 . 42 14 Cannon . | . . . . Launcher 1 | . 1 . . Special 1 | . . 1 . Kinetic 37 | 3 . 29 5 Thermal 27 | 4 . 14 9 Explosive 1 | . 1 . . Electromagnetic . | . . . . Robot Hit Streak 12 | 4 5 12 5 Robot Miss Streak 2 | 2 . 1 2 Penetration Max . | . . . . Secondary Targets 1 | . . 1 . Max Gunslinging Chain 1 | . . 1 . Shots Hit Robots 38 | 4 1 23 10 Core Hits 17 | 2 2 9 4 Critical Kills . | . . . . Critical Parts Destroyed . | . . . . Critical Strikes 4 | . . 3 1 Burn 4 | . . 3 1 Melee Attacks 1 | . . . 1 Impact . | . . . . Slashing . | . . . . Piercing . | . . . . Sneak Attacks . | . . . . Combat Hostiles . | . . . . Follow-up Attacks . | . . . . Damage Inflicted 755 | 39 126 379 211 Guns 605 | 39 . 355 211 Cannons . | . . . . Explosions 126 | . 126 . . Melee . | . . . . Ramming . | . . . . Kinetic 250 | 16 . 175 59 Thermal 379 | 23 . 204 152 Explosive 126 | . 126 . . Electromagnetic . | . . . . Impact . | . . . . Slashing . | . . . . Piercing . | . . . . Highest Corruption 9 | . . . 9 Average Corruption 8 | . . . 8 Corruption Purged . | . . . . Corruption Blocked . | . . . . Effects 4 | . . . 4 Message Errors 1 | . . . 1 Matter Fused 1 | . . . 1 Data Loss (minor) 2 | . . . 2 Overload Shots . | . . . . Overflow Damage 2 | . 2 . . Projectiles . | . . . . Explosions 2 | . 2 . . Melee . | . . . . Knockbacks . | . . . . Impact . | . . . . Kinetic . | . . . . Secondary . | . . . . Self-Inflicted Damage 34 | . 34 . . Shots 1 | . 1 . . Rammed . | . . . . Targets Rammed . | . . . . Kicked . | . . . . Crushed . | . . . . Highest Temperature 521 | 20 . . 521 Average Temperature 243 | 15 . . 281 Received Heat Transfer 436 | . . 24 412 Effects 6 | . . . 6 Shutdowns 2 | . . . 2 Interference 2 | . . . 2 Short Circuit 2 | . . . 2 Siege Activations . | . . . . Martial Activations . | . . . . Shielding Activations . | . . . . Robots Disrupted . | . . . . Combat Hostiles . | . . . . Robots Corrupted . | . . . . Combat Hostiles . | . . . . Parts Fried 1 | . . . 1 Impact Corruptions . | . . . . Robots Melted . | . . . . Combat Hostiles . | . . . . Parts Melted 3 | . . 2 1 Heat Transferred 1216 | 50 . 716 450 Parts Sabotaged . | . . . . Parts Stolen . | . . . . Parts Stripped . | . . . . Power Chain Reactions . | . . . . Alert | -11 -10 -10 -8 ------- Run | Yrd Mat Sub Scr Maximum Alert Level . | . . . . Low Security (%) 100 | 100 100 . . Level 1 . | . . . . Level 2 . | . . . . Level 3 . | . . . . Level 4 . | . . . . Level 5 . | . . . . High Security . | . . . . Max Security . | . . . . Peak Influence 17 | 5 17 . . Initial . | . . . . Average 2 | 1 3 . . Influence Increases 60 | 10 30 20 . Destroy 0b10 Robot/C 20 | . . 20 . Destroy 0b10 Robot/NC 20 | 10 10 . . Successful Hack 17 | . 17 . . Destroy Structure 3 | . 3 . . Influence Decreases 60 | 10 30 20 . Time Decay 60 | 10 30 20 . Squads Dispatched 1 | . 1 . . Investigation . | . . . . Extermination . | . . . . Reinforcement 1 | . 1 . . Assault . | . . . . Garrison . | . . . . Intercept . | . . . . Searches Triggered . | . . . . Construction Impeded . | . . . . Haulers Reinforced . | . . . . Active Scanning Responses . | . . . . Cargo Convoy Interrupts . | . . . . Stealth | -11 -10 -10 -8 --------- Run | Yrd Mat Sub Scr Distress Signals . | . . . . Communications Jammed . | . . . . Distress Signals . | . . . . Times Spotted 17 | . . 10 7 Peak Tracking Total 4 | . . 3 4 Tactical Retreats . | . . . . Traps | -11 -10 -10 -8 ------- Run | Yrd Mat Sub Scr Traps Triggered . | . . . . Indirectly . | . . . . Trap Hack Attempts . | . . . . Triggered . | . . . . Disarmed . | . . . . Reprogrammed . | . . . . Reused . | . . . . Traps Extracted . | . . . . Installed . | . . . . Triggered . | . . . . Machines | -11 -10 -10 -8 ---------- Run | Yrd Mat Sub Scr Machines Disabled 1 | . . . 1 Max in Single Turn 1 | . . . 1 Machines Repaired . | . . . . Machines Dismantled . | . . . . Machines Sabotaged . | . . . . Overloaded Fab Kills . | . . . . Hacking | -11 -10 -10 -8 --------- Run | Yrd Mat Sub Scr Machines Accessed 9 | . 2 1 6 Terminals 2 | . 2 . . Fabricators . | . . . . Repair Stations . | . . . . Recycling Units . | . . . . Scanalyzers . | . . . . Garrison Access . | . . . . Total Hacks 49 | . 6 4 39 Successful 48 | . 5 4 39 Failed 1 | . 1 . . Catastrophic . | . . . . Database Lockouts . | . . . . Manual . | . . . . Terminals 6 | . 6 . . Fabricators . | . . . . Repair Stations . | . . . . Recycling Units . | . . . . Scanalyzers . | . . . . Garrison Access . | . . . . Terminal Hacks 48 | . 5 4 39 Record 39 | . . 4 35 Robot Analysis 4 | . 1 . 3 Investigation Status 1 | . 1 . . Registered Components 1 | . 1 . . Zone Layout 2 | . 2 . . Proto ID Catalog 1 | . . . 1 Fabricator Hacks . | . . . . Repair Station Hacks . | . . . . Recycling Unit Hacks . | . . . . Scanalyzer . | . . . . Garrison Access Hacks . | . . . . Unauthorized Hacks . | . . . . Terminals . | . . . . Fabricators . | . . . . Repair Stations . | . . . . Recycling Units . | . . . . Scanalyzers . | . . . . Garrison Access . | . . . . Data Cores Recovered . | . . . . Used . | . . . . Hacking Detections 2 | . 2 . . Full Trace Events . | . . . . Feedback Events . | . . . . Feedback Blocked . | . . . . Robot Schematics Acquired . | . . . . Robots Built . | . . . . Authchips . | . . . . Time . | . . . . Total Robot Build Rating . | . . . . Part Schematics Acquired . | . . . . Parts Built . | . . . . Authchips . | . . . . Time . | . . . . Total Part Build Rating . | . . . . Part Studies Acquired . | . . . . Parts Repaired . | . . . . Time . | . . . . Parts Recycled . | . . . . Recycled Matter . | . . . . Retrieved Matter . | . . . . Retrieved Components . | . . . . Parts Scanalyzed . | . . . . Part Schematics Acquired . | . . . . Parts Damaged . | . . . . Bothacking | -11 -10 -10 -8 ------------ Run | Yrd Mat Sub Scr Used RIF Installer . | . . . . Robots Hacked . | . . . . Non-combat . | . . . . Combat . | . . . . Robot Hacks Applied . | . . . . Relay Couplers Released . | . . . . Fabnet Peak Effective % . | . . . . Robots Rewired . | . . . . Allies Hacked . | . . . . Hacks Repelled . | . . . . Allies | -11 -10 -10 -8 -------- Run | Yrd Mat Sub Scr Total Allies . | . . . . Largest Group . | . . . . Highest-Rated Group . | . . . . Highest-Rated Ally . | . . . . Total Orders . | . . . . Ally Attacks . | . . . . Total Damage . | . . . . Kills . | . . . . Allies Corrupted . | . . . . Allies Melted 5 | . . . 5 Intel | -11 -10 -10 -8 ------- Run | Yrd Mat Sub Scr Active Infowar (turns) 2462 | . 51 1359 1052 Optics 105 | . . 105 . Terrain 1864 | . . 1002 862 Seismic 303 | . 51 252 . Decoding 190 | . . . 190 Robot Analysis Total 4 | . 1 . 3 Derelict Logs Recovered 3 | . . 1 2 Drone Launches . | . . . . Drone Recoveries . | . . . . Exploration | -11 -10 -10 -8 ------------- Run | Yrd Mat Sub Scr Turns Passed 4878 | 113 142 1399 3224 Spaces Moved 3410 | 71 94 987 2258 Core 12 | 9 . . 3 Treads . | . . . . Legs 3397 | 62 94 986 2255 Wheels 1 | . . 1 . Hover . | . . . . Flight . | . . . . Fastest Speed 50 | 50 120 110 110 Average Speed 132 | 116 120 125 136 Slowest Speed 300 | 120 120 190 300 Overloaded Moves . | . . . . Propulsion Burnouts . | . . . . Robots Hopped . | . . . . Potential Cave-ins . | . . . . Cave-ins Triggered . | . . . . Exploration Rate (%) 42 | 5 23 44 96 Regions Visited 3 Branch Regions 2 Pre-discovered Areas 2 | . . 1 1 Known Exits Taken . | . . . . Unknown Exits Taken 3 | 1 1 1 . Scrap Searched 6 | . . . 6 Spaces Dug . | . . . . Terrain Destroyed 3 | . 3 . . Melee . | . . . . Projectile . | . . . . AOE 3 | . 3 . . Terrain Rammed . | . . . . Walls Destroyed . | . . . . Machines Disabled . | . . . . Actions | -11 -10 -10 -8 --------- Run | Yrd Mat Sub Scr Total 3706 | 92 124 1101 2389 Wait 90 | 3 10 41 36 Move 3407 | 70 93 986 2258 Hop . | . . . . Pick Up 34 | 9 7 8 10 Fast Attach 45 | 5 2 13 25 Attach 7 | 1 1 3 2 Detach 6 | . . 2 4 Swap 10 | . 2 2 6 Drop 60 | . 8 17 35 Fire 45 | 4 1 29 11 Melee 1 | . . . 1 Ram . | . . . . Kick . | . . . . Crush . | . . . . Escape Stasis . | . . . . Rewire 1 | . . . 1 Trap . | . . . . Miscellaneous . | . . . . Route ------- -11/Scrapyard -10/Materials -10/Subcaves (discovered 4 exits: *Mat x2 / Rec / *Scr) -8/Scraptown (discovered 2 exits: [*Fac x2]) History --------- Turn | Location | Event 14 | -11/Scrapyard | Discovered new exit (range 16) 114 | -11/Scrapyard | Entered Materials 115 | -10/Materials | Met a group of wandering Federalists 244 | -10/Materials | Discovered new exit (range 9) 256 | -10/Materials | Entered Subcaves 256 | -10/Subcaves | Accompanied by 1 ally 257 | -10/Subcaves | Continued accompanying wandering Federalists (3) 315 | -10/Subcaves | Build established: Mutant 842 | -10/Subcaves | Lost 4 parts (1p3w) 1078 | -10/Subcaves | Ambushed by Subdwellers from Twisted Machinery 1362 | -10/Subcaves | Shifting Twisted Machinery released Barrage Gun 1518 | -10/Subcaves | A swath of the cavern ceiling suddenly collapsed 1543 | -10/Subcaves | Learned location of Zion (-7) 1548 | -10/Subcaves | Discovered new exit (range 13) 1580 | -10/Subcaves | Visited Clippyterm 1584 | -10/Subcaves | Identified exit to Recycling 1584 | -10/Subcaves | Identified exit to Materials 1655 | -10/Subcaves | Entered Scraptown 1970 | -8/Scraptown | Visited Bundlers 2085 | -8/Scraptown | Visited Spacefarers 2146 | -8/Scraptown | Visited Shadow of the Wyrm 2178 | -8/Scraptown | Visited Awakened 2231 | -8/Scraptown | Visited UFD Registry 2613 | -8/Scraptown | Visited SPCMW 2731 | -8/Scraptown | Visited TADAMA 2795 | -8/Scraptown | Visited CPS Storage 2915 | -8/Scraptown | Received an X-ray algorithm 3316 | -8/Scraptown | Scanned Subdweller tech in exchange for log data 3320 | -8/Scraptown | Learned Research emergency access door positions 3322 | -8/Scraptown | Learned Research trap positions 3342 | -8/Scraptown | Discovered new exit (range 5) 3499 | -8/Scraptown | Registered with UFD as "Thundermod" 3546 | -8/Scraptown | Visited Cartography Club 3569 | -8/Scraptown | Found Surveybot 17 Chip 3667 | -8/Scraptown | Visited Chapter 10 3720 | -8/Scraptown | Visited Observation Area 3864 | -8/Scraptown | Discovered new exit (range 3) 3915 | -8/Scraptown | Visited Research Penetration Think Tank 3937 | -8/Scraptown | Visited Science Testing Area 3961 | -8/Scraptown | Visited Infowarlord's Domain 4004 | -8/Scraptown | Visited Analyses Database 4041 | -8/Scraptown | Visited A0-MCA Data Center 4048 | -8/Scraptown | Given a B rating by A0-MCA 4054 | -8/Scraptown | Found A0-MCA's Component Scanner 4089 | -8/Scraptown | Visited Science Guys 4139 | -8/Scraptown | Visited Curators Association 4459 | -8/Scraptown | Met Optimus 4459 | -8/Scraptown | Accepted into 0bPrime 4602 | -8/Scraptown | Civil war broke out across Scraptown 4721 | -8/Scraptown | Lost 3 allies 4788 | -8/Scraptown | Found Scrap Suit 4874 | -8/Scraptown | Core integrity fell below 50% 4878 | -8/Scraptown | Core integrity fell below 20% 4879 | -8/Scraptown | Destroyed by UP-K1F(j) with Overtuned Pulse Rifle Last Messages --------------- 04855_ Penetrated by Bolt. 04857_ Power failure, Lgt. Deuterium Engine shutdown. 04858_ Bolt penetrates Machine. 04858_ Bolt penetrates Wall. 04859_ Ovr. Titanium Leg destroyed. 04859_ Critical hit (Burn: +50). 04864_ Ovr. Pulse Rifle broken. 04864_ Overheating: Short circuit. 04866_ Bolt penetrates Wall. 04870_ Penetrated by Bolt. 04873_ Critical hit (Burn: +50). 04873_ KV-8EF(g) destroyed. 04874_ Critical hit (Burn: +50). 04875_ Overheating: System interference. 04875_ Ovr. Pulse Rifle temporarily disabled. 04875_ Penetrated by Bolt. 04877_ Power failure, Lgt. Deuterium Engine shutdown. 04877_ Penetrated by Bolt. 04878_ Carbon-fiber Leg broken. 04878_ Overheating: Short circuit. Map ----- +----------------------------------------------------+ | ##?????#??#"" "###########???????????? | | X"#??#?#???#"" "###########???????????? | | " "" ##??????#?#"" "## #???????????? | | "" X"#??????###"" "## #???????????? | | " ######### #"" "## #???????????? | | "" #???????????? | | "" ! "## #???????????? | | " ######### #"% !* "###########??#????????? | | "" ""#??????###""%%= "#?????????????????????? | | " "" ##????????# ![ =#???????????????#?????? | | X"#????????#"[=%! !%#?????????????????????? | | ##????????#" !%[!="#########?#????#??????? | | # ################""!==%! ## """"#?#???????????? | | """""""""""""""""""""%* ! =# " "#?????????????? | | """""""""""""""""!"*%=!j !% X"#?????????????? | | [[*!% =*[[[## "#?????????????? | | =%==![[%hj*## ""#?????????????? | | !*=! ![!= ## " "#?????????????? | | [*!%=## """"#?????????????? | | /%=[* " """"#?????????????? | | """"" """"""""""" """"%"! #########?????????????? | | ##### ########### ###### #?????????????????????? | | "# "#?# [ #?????????????????????? | | " #""" """#?# %*#?#????#??????????????? | | &" "" ""#""" """"### [ #?????????????????????? | | " "" ""#"!" """##; @ ####??????????????????? | | ""#""" ! """### ## #??????????????????? | | "" """"#""" """#?# ; #########??????????? | | """" """#"""""""""#?# =! #??????????? | | ""!" "#"""""""""#?# [%= *##??????????? | | """" """#"""""""""### [%=#??????????? | | """ X """""#"""""""""##; =!#??????????? | | """""""""""#?########?#; #??????????? | | ############??????????## ########;###??????????? | | ###?#####?##############!% #####??###????????????? | | """##"""##"""##"""##"|"# !! """#?????????????????? | | ""##" "##"" ##" |## #g* ! "#?????????????????? | | [ %[%[* #?????????????????? | | = !=!!! % [ ! = "#?????????????????? | | =% !% = """"#?????????????????? | | """## ##"|"##!!$## "|## ######?????????????????? | | """##"""##"""##"""##"""####??????????????????????? | | ########################?????????????????????????? | | ?????????????????????????????????????????????????? | | ?????????????????????????????????????????????????? | | ?????????????????????????????????????????????????? | | ?????????????????????????????????????????????????? | | ?????????????????????????????????????????????????? | | ?????????????????????????????????????????????????? | | ?????????????????????????????????????????????????? | +----------------------------------------------------+ Best States ------------- Heat Dissipation 25 Energy Generation 14 Energy Capacity 250 Matter Stores 300 Matter Capacity 550 Sight Range 21 Terrain Scan Range 16 Terrain Scan Density 1210 Phase Shifting 5 Evasion (%) 60 Targeting Accuracy 8 Melee Accuracy 8 Item Schematics ----------------- None Robot Schematics ------------------ None Fabricated ------------ Nothing Repaired ---------- Nothing Studied --------- None Alien Tech Used ----------------- None Achievements -------------- Armchair Analyst Civilization 2243 Link The Feds Strength In Numbers Challenges ------------ None Game ------ Seed MultinovaDerelictClaws Manual? 0 Play Time 00:53:36 Cumulative 4.6 hours Start 2026.07.06 @ 02:14:58 End 2026.07.06 @ 03:10:01 Sessions 1 Manual Loads 0 Difficulty Rogue Special Mode None Game No. 9 Rogue 9 Adventurer 0 Explorer 0 Win Type - Total 0 Types 0/0/0/0/0/0/0/0/0/0 Lore% 17 Gallery% 16 Achievement% 16 Wizard Run 0 Options --------- Layout 0 ASCII 0 Keyboard 0 Movement Mouse Keybinds 0 Fullscreen 2 Font 24/Smallcaps Map View 76x50 Zoom Use 0% Tactical HUD 1 Map Filters NONE Filters NONE Steam 1 RUN: 20b1df18-ba97-4f9c-8896-dfb42edb3d2c